[Event "7th Porticcio Open 2022"]
[Site "Porticcio"]
[Date "2022.07.04"]
[Round "4.6"]
[White "Mastrovasilis, Athanasios"]
[Black "Bogdanov, Egor"]
[Result "1-0"]
[ECO "D27"]
[WhiteElo "2527"]
[BlackElo "2382"]
[Annotator "TA"]
[PlyCount "73"]
[EventDate "2022.07.02"]
[EventType "swiss"]
[EventCountry "FRA"]
[SourceTitle "playchess.com"]
[Source "ChessBase"]
[SourceQuality "1"]
[TimeControl "5400+30"]

{[%evp 20,73,0,-2,6,12,6,18,50,28,100,122,118,124,131,118,114,104,102,60,106,99,219,165,208,230,217,188,172,160,250,254,364,353,352,351,418,413,561,547,510,453,597,592,566,581,1098,1095,1073,1022,29989,29990,29990,29991,29995,29996]} 1. d4 {[%emt 0:00:02]} d5 {[%emt 0:00:06]} 2. Nf3 {[%emt 0:00:38]} Nf6 {[%emt 0:00:43]} 3. c4 {[%emt 0:01:45]} e6 {[%emt 0:00:30]} 4. e3 {[%emt 0:00:43]} dxc4 {[%emt 0:03:30]} 5. Bxc4 {[%emt 0:02:08]} c5 {[%emt 0:00:09]} 6. O-O {[%emt 0:01:29]} a6 {[%emt 0:00:03]} 7. Bd3 {[%emt 0:03:23]} cxd4 {[%emt 0:03:14]} 8. exd4 {[%emt 0:00:54]} Nc6 {[%emt 0:01:25]} 9. Nc3 {[%emt 0:00:25]} Be7 {[%emt 0:00:41]} 10. a3 {[%emt 0:01:13]} O-O {[%emt 0:00:18]} 11. Bg5 {[%emt 0:00:31]} Nd5 {[%emt 0:04:24] E57: Nimzo-Indian: Rubinstein: Main Line: 7...Nc6 8 a3 dxc4 9 Bxc4 cxd4.} 12. Bd2 {[%emt 0:19:54]} Nf6 {[%emt 0:16:36]} 13. Be3 {[%emt 0:05:49]} Nd5 {[%emt 0:08:42] The position is equal.} 14. Qc2 {[%emt 0:02:53] [#]} Nxe3 $146 {[%emt 0:12:10]} (14... g6 $11 {remains equal.}) ({Predecessor:} 14... g6 15. Bh6 Re8 16. Be4 Bf6 17. Rad1 Qd6 18. Qb3 Nce7 19. Ne5 b5 20. Bxd5 exd5 21. Bf4 Qe6 22. Rfe1 Qf5 23. Nxd5 Nxd5 24. Qxd5 Be6 25. Qf3 Bxe5 26. Rxe5 Qc2 27. Rde1 Qxb2 28. Bh6 {1-0 (26) Ghaem Maghami,E (2574)-Omidi,A (2313) Rasht 2017}) 15. Bxh7+ $16 {[%emt 0:14:41]} ({But not} 15. fxe3 h6 $14) 15... Kh8 {[%emt 0:00:02]} 16. fxe3 {[%emt 0:00:09]} f5 {[%emt 0:04:52]} 17. Bg6 {[%emt 0:02:58] Threatens to win with Rad1.} Bg5 {[%emt 0:07:24]} 18. Qe2 {[%emt 0:05:07][%cal Od4d5]} Bh6 {[%emt 0:01:42]} 19. h4 {[%emt 0:02:38][%cal Og2g4,Bh2h4,Bh4h5,Bh5g6][%mdl 32]} e5 {[%emt 0:06:38]} (19... Qf6 $1 $14 20. h5 Bd7) 20. dxe5 {[%emt 0:03:38]} Ne7 {[%emt 0:01:30]} (20... Be6 $16) 21. h5 {[%emt 0:03:38]} Qb6 {[%emt 0:00:29]} 22. Rad1 {[%emt 0:03:39]} Qxe3+ {[%emt 0:12:10]} 23. Qxe3 {[%emt 0:00:41]} Bxe3+ {[%emt 0:00:02]} 24. Kh2 {[%emt 0:01:21]} Nxg6 {[%emt 0:00:35]} (24... Be6 $16 {was worth a try.} 25. Rd6 Bc4) 25. hxg6 $18 {[%emt 0:00:16] [#] Hoping for Nd5.} Be6 {[%emt 0:00:01]} (25... f4 $142 26. Nd5 Bf5) 26. Nd5 {[%emt 0:04:49]} Bxd5 {[%emt 0:00:56]} 27. Rxd5 {[%emt 0:00:02]} Rae8 {[%emt 0:00:54]} 28. Re1 {[%emt 0:01:31]} Bb6 {[%emt 0:06:34]} 29. Ng5 {[%emt 0:03:17] [#] And now Nf7+ would win.} Kg8 {[%emt 0:00:25]} 30. Kg3 {[%emt 0:01:11]} Bc7 {[%emt 0:01:02]} 31. Kf4 {[%emt 0:03:14]} Rf6 {[%emt 0:02:03]} 32. Rd7 {[%emt 0:00:24]} Rc6 {[%emt 0:00:51]} 33. Nf7 {[%emt 0:00:47] Threatening mate with Rh1.} Rxg6 {[%emt 0:05:08]} 34. Rxc7 {[%emt 0:01:00] Intending Rh1 and mate. Active counter play!} Rxg2 {[%emt 0:00:13]} 35. Rh1 {[%emt 0:00:54][%csl Gf7][%cal Rh1h8] White mates.} g5+ {[%emt 0:00:23]} 36. Kf3 {[%emt 0:00:33]} Rxb2 {[%emt 0:00:17]} 37. Nh6+ {[%emt 0:00:28] Weighted Error Value: White=0.08 (flawless) /Black=0.63} 1-0

[Event "7th Porticcio Open 2022"]
[Site "Porticcio"]
[Date "2022.07.04"]
[Round "4.7"]
[White "Villegas, Pierre"]
[Black "Yankelevich, Lev"]
[Result "0-1"]
[ECO "E46"]
[WhiteElo "2294"]
[BlackElo "2496"]
[Annotator "TA"]
[PlyCount "76"]
[EventDate "2022.07.02"]
[EventType "swiss"]
[EventCountry "FRA"]
[SourceTitle "playchess.com"]
[Source "ChessBase"]
[SourceQuality "1"]
[TimeControl "5400+30"]

{[%evp 9,76,0,10,7,14,6,11,0,0,-11,-13,-14,0,-20,-8,-24,-7,-33,-37,-30,-31,-44,-52,-51,-21,-30,-16,-34,-41,-84,-70,-81,0,0,0,0,0,0,0,0,0,-30,0,0,0,0,0,0,0,0,38,8,8,8,63,0,0,-14,0,-186,-186,-175,-170,-186,-118,-186,-186,-187,-174]} 1. d4 {[%emt 0:00:04]} Nf6 {[%emt 0:00:11]} 2. c4 {[%emt 0:00:13]} e6 {[%emt 0:00:16]} 3. Nc3 {[%emt 0:00:14]} Bb4 {[%emt 0:00:11]} 4. e3 {[%emt 0:01:00]} O-O {[%emt 0:00:24]} 5. Bd2 {[%emt 0:00:39]} c5 {[%emt 0:00:26]} 6. a3 {[%emt 0:00:53] E46: Nimzo-Indian: Rubinstein: 4 e3 0-0 5 Ne2 without early Bd3.} Bxc3 {[%emt 0:00:08]} 7. Bxc3 {[%emt 0:00:05]} Ne4 {[%emt 0:00:05]} 8. Qc2 {[%emt 0:03:19] The position is equal.} Nxc3 {[%emt 0:04:03]} 9. Qxc3 {[%emt 0:03:34]} cxd4 {[%emt 0:05:03]} 10. Qxd4 {[%emt 0:06:56]} Nc6 {[%emt 0:01:10]} 11. Qc3 {[%emt 0:00:35]} b6 {[%emt 0:05:59]} 12. Nf3 {[%emt 0:01:11]} Bb7 {[%emt 0:01:20] [#]} 13. h4 $146 {[%emt 0:20:02]} ({Predecessor:} 13. Be2 Rc8 14. b4 d5 15. Rd1 Ne7 16. Qb2 Qc7 17. Rc1 dxc4 18. Rxc4 Qd6 19. Rxc8 Rxc8 {½-½ (38) Rakotomaharo,F (2430)-Fier,A (2539) Cannes 2020}) 13... Rc8 {[%emt 0:01:17]} 14. h5 {[%emt 0:00:41]} h6 {[%emt 0:01:08]} 15. Rh4 {[%emt 0:12:38]} Qe7 {[%emt 0:11:09]} 16. Rd1 {[%emt 0:06:20]} Rfd8 {[%emt 0:11:22][%cal Oc6e5]} 17. Rg4 {[%emt 0:06:47][%csl Gg4][%cal Rc3g7] [#]} f6 {[%emt 0:00:28]} 18. Nh4 {[%emt 0:05:36]} Ne5 {[%emt 0:04:37]} 19. Ng6 {[%emt 0:03:06]} Nxg6 {[%emt 0:01:13]} 20. hxg6 {[%emt 0:01:02]} e5 {[%emt 0:05:47]} (20... Qe8 $17) 21. e4 $1 $11 {[%emt 0:04:50]} d5 {[%emt 0:03:47]} 22. exd5 {[%emt 0:00:19]} Bxd5 {[%emt 0:00:16]} 23. Qb4 {[%emt 0:05:09]} Qxb4+ {[%emt 0:01:44]} 24. axb4 {[%emt 0:00:36]} Be6 {[%emt 0:01:46]} 25. Rxd8+ {[%emt 0:00:43]} Rxd8 {[%emt 0:00:01][%mdl 4096] Endgame KRB-KRB} 26. Rg3 {[%emt 0:00:08]} Kf8 {[%emt 0:03:52]} 27. Ra3 {[%emt 0:02:17]} Rd7 {[%emt 0:00:02]} 28. c5 {[%emt 0:00:30]} bxc5 {[%emt 0:02:57]} 29. bxc5 {[%emt 0:00:17]} Bf5 {[%emt 0:00:04]} (29... Rb7 $5 {[%cal Rb7b2]}) 30. b4 {[%emt 0:02:08]} (30. Rb3 $5 {[%cal Rb3b8]} Ke7 31. Ra3 $11) 30... Bxg6 {[%emt 0:00:15]} 31. b5 {[%emt 0:00:21]} Be4 {[%emt 0:00:28]} (31... Bf5 $11) 32. Be2 {[%emt 0:10:41]} (32. f3 $14 Bf5 33. b6 axb6 34. cxb6) 32... Ke7 {[%emt 0:01:11]} 33. Bg4 {[%emt 0:01:51]} Rc7 {[%emt 0:01:20]} 34. b6 $2 {[%emt 0:01:14]} (34. f3 $11 f5 35. fxe4 fxg4 36. Kd2) 34... axb6 $19 {[%emt 0:00:03]} ({Resist} 34... Rxc5 35. f3 Rc1+ 36. Kf2 axb6 37. fxe4 $16) 35. cxb6 {[%emt 0:00:01] [#]} Rb7 {[%emt 0:06:13]} 36. Rb3 {[%emt 0:00:05]} Rb8 {[%emt 0:00:34] Prevents Bc8.} ({Worse is} 36... Bxg2 37. f3 $11) (36... Bd5 $19 37. Rb5 Kd6) 37. f3 {[%emt 0:01:58]} (37. Ke2 $17) 37... Bd5 {[%emt 0:00:14]} 38. Rb2 {[%emt 0:00:20]} Kd6 {[%emt 0:00:10] Weighted Error Value: White=0.24 (precise) /Black=0.11 (very precise)} 0-1

[Event "7th Porticcio Open 2022"]
[Site "Porticcio"]
[Date "2022.07.04"]
[Round "4.8"]
[White "Rakotomaharo, Fy Antenaina"]
[Black "Houhou, Alexandre"]
[Result "1-0"]
[ECO "C02"]
[WhiteElo "2490"]
[BlackElo "2185"]
[Annotator "TA"]
[PlyCount "73"]
[EventDate "2022.07.02"]
[EventType "swiss"]
[EventCountry "FRA"]
[SourceTitle "playchess.com"]
[Source "ChessBase"]
[SourceQuality "1"]
[TimeControl "5400+30"]

{[%evp 14,72,0,0,0,-31,-29,-30,-18,-40,-32,-25,-33,-27,-22,0,9,2,16,-16,0,0,145,150,181,175,174,124,101,110,81,94,132,129,98,58,152,152,192,208,214,183,380,373,381,382,399,384,356,200,292,262,340,176,29991,29992,29992,29993,29998,29999,29999]} 1. e4 {[%emt 0:00:03]} e6 {[%emt 0:01:55]} 2. d4 {[%emt 0:00:12]} d5 {[%emt 0:00:04]} 3. e5 {[%emt 0:00:10]} c5 {[%emt 0:00:04]} 4. c3 {[%emt 0:00:04]} Nc6 {[%emt 0:00:02]} 5. Nf3 {[%emt 0:00:07]} Qb6 {[%emt 0:00:03]} 6. Be2 {[%emt 0:00:43]} cxd4 {[%emt 0:00:49]} 7. cxd4 {[%emt 0:00:06]} Nh6 {[%emt 0:00:01]} 8. Bxh6 $1 {[%emt 0:00:14][%mdl 4] Bc1 is the strong threat. now scores much better than the old 8.Nc3.} Qxb2 {[%emt 0:00:03] C02: French: Advance Variation.} 9. Nc3 {[%emt 0:00:09]} Qxc3+ {[%emt 0:11:10]} 10. Bd2 {[%emt 0:00:19]} Qa3 {[%emt 0:00:01] [#] Black has an edge.} 11. h4 $146 {[%emt 0:00:15]} ({Predecessor:} 11. O-O a6 12. Qc2 h6 13. Rab1 Qe7 14. Rb6 Qc7 15. Rfb1 Be7 16. Bd1 a5 17. R6b3 {1-0 (51) Durarbayli,V (2618)-Jumabayev,R (2621) Saint Louis 2018}) 11... Bb4 {[%emt 0:02:12]} 12. O-O {[%emt 0:00:16][%cal Bh1f1,Bf1c1,Bc1b1][%mdl 32]} Bxd2 {[%emt 0:05:02]} 13. Qxd2 {[%emt 0:00:07]} Qe7 {[%emt 0:06:00]} 14. Rab1 {[%emt 0:04:18]} O-O {[%emt 0:03:43]} 15. Rfc1 {[%emt 0:00:24]} f6 {[%emt 0:00:36]} 16. Qe3 {[%emt 0:13:34]} fxe5 {[%emt 0:16:25]} 17. dxe5 {[%emt 0:00:34]} Bd7 {[%emt 0:14:06]} (17... h6 $11 {remains equal.}) 18. Rxb7 $16 {[%emt 0:02:47]} Rab8 {[%emt 0:00:18]} 19. Rcb1 {[%emt 0:06:19]} ({Much less strong is} 19. Rc7 $6 Rb6 $16) 19... a5 {[%emt 0:05:26]} 20. Bd3 {[%emt 0:01:51]} (20. Rxb8 $18 Rxb8 21. Rxb8+ Nxb8 22. Qb6) 20... Nb4 {[%emt 0:03:58] [#]} 21. Rxb8 {[%emt 0:01:11]} Rxb8 {[%emt 0:00:17]} 22. a3 {[%emt 0:11:17][%cal Ba2a3,Ba3a4][%mdl 32]} Nc6 {[%emt 0:00:07] Prevents Qa7.} 23. Rxb8+ {[%emt 0:00:10]} Nxb8 {[%emt 0:00:02]} 24. h5 {[%emt 0:00:27][%cal Bh4h5,Bh5h6][%mdl 32] White is more active.} Nc6 {[%emt 0:05:32]} ({Better is} 24... h6 $14) 25. h6 {[%emt 0:02:54]} g6 {[%emt 0:04:20]} 26. Qc1 {[%emt 0:09:11]} Be8 {[%emt 0:03:44] [#]} 27. a4 $1 {[%emt 0:04:23] aiming for Bb5.} Na7 {[%emt 0:02:28] Against Bb5} (27... Nd8 {was worth a try.}) 28. Qc2 $18 {[%emt 0:00:20]} Qd7 {[%emt 0:01:25]} 29. Qc5 {[%emt 0:00:29]} Nc6 {[%emt 0:09:41]} 30. Bb5 {[%emt 0:00:37]} d4 {[%emt 0:02:09]} 31. Bc4 {[%emt 0:15:30]} (31. Qc1 $142) 31... d3 {[%emt 0:02:06]} (31... Qe7 $142 32. Qxe7 Nxe7 33. Bxe6+ (33. Nxd4 Bxa4 34. Nxe6 Bc6 $16) 33... Kh8 34. Nxd4 Bxa4) 32. Qe3 {[%emt 0:00:04]} Nb4 {[%emt 0:00:59]} 33. Qd2 {[%emt 0:00:16]} (33. Bb5 $142 Nc6 34. Bxd3 (34. Qxd3 Qxd3 35. Bxd3 Nd8 $14)) 33... Qxa4 {[%emt 0:00:37]} (33... Qc8 $18 34. Qf4 Nd5) 34. Bxe6+ {[%emt 0:00:04] White mates.} Bf7 {[%emt 0:00:27] [#]} 35. Qg5 $1 {[%emt 0:03:01]} Bxe6 {[%emt 0:01:18]} (35... Qe8 36. Qf6) 36. Qd8+ {[%emt 0:00:06]} Kf7 {[%emt 0:00:02]} 37. Ng5# {[%emt 0:00:05] Weighted Error Value: White=0.16 (very precise) /Black=0.54} 1-0

[Event "7th Porticcio Open 2022"]
[Site "Porticcio"]
[Date "2022.07.05"]
[Round "5.1"]
[White "Venkatesh, M.R."]
[Black "Maurizzi, Marc Andria"]
[Result "1/2-1/2"]
[ECO "C43"]
[WhiteElo "2479"]
[BlackElo "2506"]
[Annotator "TA"]
[PlyCount "69"]
[EventDate "2022.07.02"]
[EventType "swiss"]
[EventCountry "FRA"]
[SourceTitle "playchess.com"]
[Source "ChessBase"]
[SourceQuality "1"]
[TimeControl "5400+30"]

{[%evp 9,69,27,29,25,24,24,25,25,26,36,27,11,12,11,28,27,31,39,41,24,19,0,10,2,18,14,22,-5,-6,-18,0,0,0,0,0,0,0,0,0,0,0,0,0,0,0,0,-5,-8,0,0,0,0,0,0,0,0,0,0,0,0,0,0]} 1. e4 {[%emt 0:03:08]} e5 {[%emt 0:00:55]} 2. Nf3 {[%emt 0:00:12]} Nf6 {[%emt 0:00:07]} 3. d4 {[%emt 0:01:43]} Nxe4 {[%emt 0:00:25]} 4. Bd3 {[%emt 0:00:07]} Nc6 {[%emt 0:01:16]} 5. Nxe5 {[%emt 0:01:57]} Nxe5 {[%emt 0:02:22]} 6. dxe5 {[%emt 0:00:08] C43: Petroff Defence: 3 d4.} Nc5 $1 {[%emt 0:00:21] The main line 6...Nc5 scores better than 6...d5.} 7. Bc4 {[%emt 0:00:17]} d6 {[%emt 0:00:33]} 8. Qf3 {[%emt 0:00:20][%csl Gc4][%cal Rf3f7] [#] White has an edge.} Ne6 {[%emt 0:00:21]} 9. exd6 {[%emt 0:01:42]} Bxd6 {[%emt 0:00:04]} 10. Be3 {[%emt 0:00:50]} Bd7 {[%emt 0:05:47]} 11. Bd5 {[%emt 0:00:26] [#] Prevents Bc6.} Be5 $146 {[%emt 0:13:11]} ({Predecessor:} 11... c6 12. Bc4 O-O 13. Nd2 b5 14. Bb3 a5 15. a3 Qc7 16. Ne4 Be5 17. O-O-O a4 {½-½ (35) Predke,A (2682)-Yu,Y (2713) Belgrade 2022}) 12. Nc3 {[%emt 0:05:44]} Qf6 {[%emt 0:05:49]} 13. Qxf6 {[%emt 0:08:23]} Bxf6 {[%emt 0:00:25]} 14. O-O-O {[%emt 0:00:16]} O-O-O {[%emt 0:03:38]} 15. f4 {[%emt 0:15:40] The position is equal.} g6 {[%emt 0:11:17]} 16. Rhf1 {[%emt 0:06:34]} Bxc3 {[%emt 0:24:20]} 17. bxc3 {[%emt 0:00:08]} f5 {[%emt 0:01:26]} 18. Rfe1 {[%emt 0:05:58]} Rhe8 {[%emt 0:01:42]} 19. g3 {[%emt 0:00:07]} ({Of course not} 19. Bxa7 Nxf4 20. Be3 Nxd5 21. Rxd5 f4 $17) 19... Nf8 {[%emt 0:02:11]} 20. Bc5 {[%emt 0:19:17] [#] Hoping for Be7. This bishop pair is nice.} Be6 $1 {[%emt 0:01:48]} 21. Bxb7+ {[%emt 0:09:19]} Kxb7 {[%emt 0:00:37]} 22. Rxd8 {[%emt 0:01:16]} Rxd8 {[%emt 0:00:06]} 23. Bxf8 {[%emt 0:00:04] Be7 is the strong threat.} Bxa2 $11 {[%emt 0:00:04][%mdl 4096] Endgame KRB-KRB} 24. Bc5 {[%emt 0:00:06]} Rd7 {[%emt 0:00:53]} 25. Kb2 {[%emt 0:02:44]} Bc4 {[%emt 0:04:43]} 26. Bd4 {[%emt 0:00:23]} Bd5 {[%emt 0:01:04]} 27. Ra1 {[%emt 0:03:45]} a6 {[%emt 0:00:10]} 28. Ra4 {[%emt 0:00:13]} Rd6 {[%emt 0:00:42]} 29. Ra5 {[%emt 0:03:31]} Be4 {[%emt 0:01:06]} 30. Re5 {[%emt 0:00:36]} Rd7 {[%emt 0:00:30]} 31. Kb3 {[%emt 0:00:56]} Bd5+ {[%emt 0:00:13]} 32. Kb4 {[%emt 0:00:34]} Be4 {[%emt 0:00:06]} 33. Kb3 {[%emt 0:00:06]} Bd5+ {[%emt 0:02:23]} 34. Kb4 {[%emt 0:00:17]} Be4 {[%emt 0:01:02]} 35. Kb3 {Weighted Error Value: White=0.03 (flawless) /Black=0.03 (flawless)} 1/2-1/2

[Event "7th Porticcio Open 2022"]
[Site "Porticcio"]
[Date "2022.07.05"]
[Round "5.2"]
[White "Can, Isik"]
[Black "Karttunen, Mika"]
[Result "1-0"]
[ECO "C65"]
[WhiteElo "2445"]
[BlackElo "2484"]
[Annotator "TA"]
[PlyCount "105"]
[EventDate "2022.07.02"]
[EventType "swiss"]
[EventCountry "FRA"]
[SourceTitle "playchess.com"]
[Source "ChessBase"]
[SourceQuality "1"]
[TimeControl "5400+30"]

{[%evp 10,105,22,0,5,0,0,-1,0,0,0,0,0,0,19,4,24,0,0,0,0,-65,0,14,21,0,0,-15,0,-9,4,0,29,8,83,90,76,41,27,0,147,166,180,171,181,173,177,67,66,55,186,128,141,115,126,103,97,145,273,212,580,271,256,261,256,168,161,163,218,160,281,205,858,849,835,805,1695,1695,1643,1595,1558,1445,2208,1026,877,839,916,826,833,813,29990,29991,29991,29973,29992,6293,29998,29999]} 1. e4 {[%emt 0:02:55]} e5 {[%emt 0:00:10]} 2. Nf3 {[%emt 0:01:13]} Nc6 {[%emt 0:00:15]} 3. Bb5 {[%emt 0:00:04]} Nf6 {[%emt 0:00:13]} 4. d3 {[%emt 0:01:46]} Bc5 {[%emt 0:00:25]} 5. Bxc6 {[%emt 0:00:12]} dxc6 {[%emt 0:00:11]} 6. Nc3 {[%emt 0:01:38]} Nd7 {[%emt 0:02:26] C48: Four Knights: 4 Bb5, replies other than 4...Bb4.} 7. Be3 {[%emt 0:00:56]} Bxe3 {[%emt 0:03:26]} 8. fxe3 {[%emt 0:01:31]} Qe7 {[%emt 0:02:58] The position is equal.} 9. O-O {[%emt 0:03:03]} b6 {[%emt 0:02:28]} 10. Qe1 {[%emt 0:09:34]} Bb7 {[%emt 0:03:05] [#]} 11. Rb1 $146 {[%emt 0:05:20]} ({Predecessor:} 11. Qg3 f6 12. a3 a5 13. Nd2 h5 14. Nf3 g5 15. h4 Rg8 16. hxg5 fxg5 17. Nh4 {1-0 (45) Anand,V (2751)-So,W (2776) Warsaw 2022}) 11... O-O-O {[%emt 0:09:05]} 12. b4 {[%emt 0:01:44]} a6 {[%emt 0:00:19]} 13. Nd2 {[%emt 0:05:02]} g6 {[%emt 0:02:19]} 14. a4 {[%emt 0:01:46]} Rhf8 {[%emt 0:11:43]} 15. b5 {[%emt 0:09:03]} (15. Qe2 $11) 15... f5 {[%emt 0:11:38]} ({Better is} 15... cxb5 $1 $15 16. axb5 a5) 16. bxa6 $11 {[%emt 0:05:09]} Bxa6 {[%emt 0:00:15]} 17. a5 {[%emt 0:01:36]} b5 $1 {[%emt 0:01:19]} 18. Kh1 {[%emt 0:29:54]} Qd6 {[%emt 0:15:35]} 19. h3 Nc5 {[%emt 0:02:38]} 20. Qh4 {[%emt 0:10:30]} Rd7 {[%emt 0:09:34]} 21. Rf2 {[%emt 0:03:04]} Ne6 {[%emt 0:01:27]} (21... Rdf7 $1 $11 {keeps the balance.}) 22. exf5 $16 {[%emt 0:02:52]} gxf5 {[%emt 0:00:06]} 23. Nf3 {[%emt 0:00:52]} Rg7 {[%emt 0:06:07]} 24. Qh6 {[%emt 0:01:05]} Rff7 {[%emt 0:05:38] [#]} (24... b4 $1 $11 25. Ne2 (25. Rxb4 Qxb4 26. Qxe6+ Kb8 $11) 25... Rg6) 25. Nh4 $1 $36 {[%emt 0:00:45][%mdl 2048] White is in control.} f4 {[%emt 0:00:37]} 26. Ne4 {[%emt 0:01:06] Prevents Ng5.} Qe7 {[%emt 0:00:09]} 27. exf4 {[%emt 0:00:10]} exf4 {[%emt 0:01:01]} 28. Qh5 {[%emt 0:00:49]} (28. Nf3 $18) 28... Ng5 $1 $14 {[%emt 0:00:36]} 29. Re1 {[%emt 0:00:43] White is more active.} Qe5 {[%emt 0:06:11]} (29... Kb8 $14) 30. d4 {[%emt 0:00:32]} ({White should try} 30. Rfe2 $18 Qd5 31. Nd2) 30... Qxe4 {[%emt 0:00:32]} 31. Rxe4 {[%emt 0:00:21] Dancing on a razor blade.} Nxe4 {[%emt 0:00:03]} 32. Kg1 {[%emt 0:00:24][%cal Oh5h6]} Nxf2 {[%emt 0:00:28]} 33. Kxf2 {[%emt 0:00:02]} Bb7 {[%emt 0:01:35]} (33... Rd7 $16) 34. Qc5 {[%emt 0:00:21][%cal Oa5a6] Hoping for a6!} Rg8 $2 {[%emt 0:00:55]} (34... Kb8 {is a better chance.} 35. Nf3 Rf6) 35. Nf5 {[%emt 0:00:37]} (35. a6 $142 {Threatens to win with Qa7.} f3 36. axb7+ Kxb7 37. Nxf3) 35... Rgf8 $18 {[%emt 0:00:42] [#]} 36. Nh6 {[%emt 0:00:37]} Rf6 {[%emt 0:00:15]} 37. Ng4 {[%emt 0:01:07]} Rd6 {[%emt 0:00:17]} 38. Ne5 {[%emt 0:00:21]} Rff6 {[%emt 0:00:27]} (38... Rg8 $142 39. c3 h6) 39. Nd3 {[%emt 0:00:27][%cal Oa5a6] Strongly threatening a6!} f3 {[%emt 0:00:58]} (39... Kb8 $16 40. Qe5 f3) 40. gxf3 {[%emt 0:00:34][%cal Oa5a6] a6! is the strong threat.} Rf7 $2 {[%emt 0:00:29]} (40... Kb8 41. c3 Bc8) 41. a6 {[%emt 0:00:30]} Bxa6 {[%emt 0:00:50]} 42. Qa7 {[%emt 0:00:08]} c5 {[%emt 0:01:27]} 43. Nxc5 {[%emt 0:00:26][%cal Ra7a8]} Kd8 {[%emt 0:00:17]} 44. Nxa6 {[%emt 0:00:14] Black must now prevent Qb8+.} Rdf6 {[%emt 0:00:47]} 45. Qa8+ {[%emt 0:00:33]} Kd7 {[%emt 0:00:18]} 46. Nc5+ {[%emt 0:00:10]} Ke7 {[%emt 0:00:04]} 47. Qe4+ {[%emt 0:00:12]} Kd6 {[%emt 0:00:22]} 48. Nb7+ {[%emt 0:00:46]} Kd7 {[%emt 0:00:03]} 49. Qd5+ {[%emt 0:00:05]} Ke7 {[%emt 0:00:30]} 50. Qd8+ {[%emt 0:00:13]} Ke6 {[%emt 0:00:03]} 51. Nc5+ {[%emt 0:00:09]} Kf5 {[%emt 0:00:03]} 52. Ne4 {[%emt 0:00:06]} (52. Qg8 $142 Rg6 53. Qxf7+ Kg5 54. Ne6+ Kh6 55. Qf8+ Kh5 56. Nf4+ Kh4 57. Qe7+ Rg5 58. Qxh7+ Rh5 59. Qxh5#) 52... Rb6 {[%emt 0:01:12]} 53. Qd5+ {[%emt 0:00:05] Weighted Error Value: White=0.34/Black=0.55} 1-0